fUSD/lending_fUSD_20250807
["ID","MTS","AMOUNT","RATE_DAILY","PERIOD"]
[377840495,1754573349947,-1453.82,0.00019967,2]
[377840496,1754573349970,-734.94,0.00019967,2]
[377840497,1754573349992,-408.63640994,0.00019967,2]
[377840498,1754573350015,-400.0,0.00019967,2]
[377840499,1754573350038,-400.0,0.00019967,2]
[377840500,1754573350062,-400.0,0.00019967,2]
[377840501,1754573350087,-345.96238687,0.00019967,2]
[377840502,1754573350109,-400.0,0.00019967,2]
[377840503,1754573350133,-400.0,0.00019967,2]
[377840504,1754573350156,-400.0,0.00019967,2]
[377840505,1754573350178,-400.0,0.00019967,2]
[377840506,1754573350200,-827.44,0.00019967,2]
[377840507,1754573350224,-400.0,0.00019967,2]
[377840508,1754573350246,-400.0,0.00019967,2]
[377840509,1754573350267,-478.05,0.00019967,2]
[377840510,1754573350295,-400.0,0.00019967,2]
[377840511,1754573350319,-613.74,0.00019967,2]
[377840512,1754573350341,-400.0,0.00019967,2]
[377840513,1754573350364,-1517.49,0.00019967,2]
[377840514,1754573350387,-151.0,0.00019967,2]
[377840515,1754573350409,-151.0,0.00019967,2]
[377840516,1754573350432,-151.0,0.00019967,2]
[377840517,1754573350456,-151.0,0.00019967,2]
[377840518,1754573350480,-151.0,0.00019967,2]
[377840519,1754573350503,-151.0,0.00019967,2]
[377840520,1754573350526,-151.0,0.00019967,2]
[377840521,1754573350550,-413.07934062,0.00019967,2]
[377840522,1754573350575,-207.629802,0.00019967,2]
[377840523,1754573350597,-971.46,0.00019967,2]
[377840524,1754573350620,-927.5,0.00019967,2]
[377840525,1754573350643,-1561.39,0.00019967,2]
[377840526,1754573350665,-400.0,0.00019967,2]
[377840527,1754573350689,-151.0,0.00019967,2]
[377840528,1754573350711,-400.0,0.00019967,2]
[377840529,1754573350733,-584.36,0.00019967,2]
[377840530,1754573350756,-2491.69,0.00019967,2]
[377840531,1754573350778,-906.3,0.00019967,2]
[377840532,1754573350800,-400.0,0.00019967,2]
[377840533,1754573350825,-1316.85,0.00019967,2]
[377840534,1754573350847,-804.58,0.00019967,2]
[377840535,1754573350870,-2047.73,0.00019967,2]
[377840536,1754573351291,-400.0,0.00019967,2]
[377840537,1754573351313,-400.0,0.00019967,2]
[377840538,1754573351337,-1738.87,0.00019967,2]
[377840539,1754573351361,-400.0,0.00019967,2]
[377840540,1754573351382,-425.44,0.00019967,2]
[377840541,1754573351404,-556.42,0.00019967,2]
[377840542,1754573351426,-948.72,0.00019967,2]
[377840543,1754573351450,-400.0,0.00019967,2]
[377840544,1754573351473,-1666.7,0.00019967,2]
[377840545,1754573351496,-500.0,0.00019967,2]
[377840546,1754573351518,-1623.6,0.00019967,2]
[377840547,1754573351544,-605.08,0.00019967,2]
[377840548,1754573351567,-400.0,0.00019967,2]
[377840549,1754573351589,-400.0,0.00019967,2]
[377840550,1754573351611,-400.0,0.00019967,2]
[377840551,1754573351633,-447.96,0.00019967,2]
[377840552,1754573351654,-932.32,0.00019967,2]
[377840553,1754573351675,-696.36,0.00019967,2]
[377840554,1754573351696,-799.59,0.00019967,2]
[377840555,1754573351718,-400.0,0.00019967,2]
[377840556,1754573351740,-688.44,0.00019967,2]
[377840557,1754573351761,-940.35,0.00019967,2]
[377840558,1754573351783,-410.63,0.00019967,2]
[377840559,1754573351805,-400.0,0.00019967,2]
[377840560,1754573351830,-400.0,0.00019967,2]
[377840561,1754573351851,-837.16,0.00019967,2]
[377840562,1754573351874,-400.0,0.00019967,2]
[377840563,1754573351896,-400.0,0.00019967,2]
[377840564,1754573351918,-2730.29,0.00019967,2]
[377840565,1754573351939,-157.15576494,0.00019967,2]
[377840566,1754573351960,-400.0,0.00019967,2]
[377840567,1754573351982,-434.79,0.00019967,2]
[377840568,1754573352004,-1955.81,0.00019967,2]
[377840569,1754573352025,-1407.21,0.00019967,2]
[377840570,1754573352047,-526.02,0.00019967,2]
[377840571,1754573352068,-400.0,0.00019967,2]
[377840572,1754573352089,-400.0,0.00019967,2]
[377840573,1754573352110,-400.0,0.00019967,2]
[377840574,1754573352133,-400.0,0.00019967,2]
[377840575,1754573352154,-400.0,0.00019967,2]
[377840576,1754573352176,-400.0,0.00019967,2]
[377840577,1754573352198,-521.67,0.00019967,2]
[377840578,1754573352221,-1494.47,0.00019967,2]
[377840579,1754573352242,-400.0,0.00019967,2]
[377840580,1754573352265,-1559.32,0.00019967,2]
[377840581,1754573352291,-400.0,0.00019967,2]
[377840582,1754573352314,-400.0,0.00019967,2]
[377840583,1754573352338,-400.0,0.00019967,2]
[377840584,1754573352360,-400.0,0.00019967,2]
[377840585,1754573352382,-987.05,0.00019967,2]
[377840586,1754573352405,-2304.44,0.00019967,2]
[377840587,1754573352427,-2680.5,0.00019967,2]
[377840588,1754573352450,-500.0,0.00019967,2]
[377840589,1754573352472,-538.19,0.00019967,2]
[377840590,1754573352500,-400.0,0.00019967,2]
[377840591,1754573352524,-400.0,0.00019967,2]
[377840592,1754573352548,-278.32775803,0.00019967,2]
[377840593,1754573352573,-2327.63,0.00019967,2]
[377840594,1754573352596,-400.0,0.00019967,2]
[377840595,1754573352618,-433.44,0.00019967,2]
[377840596,1754573352640,-722.75,0.00019967,2]
[377840597,1754573352662,-411.22,0.00019967,2]
[377840598,1754573352684,-400.0,0.00019967,2]
[377840599,1754573352706,-500.0,0.00019967,2]
[377840600,1754573352728,-400.0,0.00019967,2]
[377840601,1754573352752,-826.07,0.00019967,2]
[377840602,1754573352776,-400.0,0.00019967,2]
[377840603,1754573352799,-575.0,0.00019967,2]
[377840604,1754573352823,-641.98,0.00019967,2]
[377840605,1754573352848,-179.260472,0.00019967,2]
[377840606,1754573352871,-381.45177418,0.00019967,2]
[377840607,1754573352893,-637.77,0.00019967,2]
[377840608,1754573352916,-500.0,0.00019967,2]
[377840609,1754573352938,-404.78,0.00019967,2]
[377840610,1754573352959,-1275.35,0.00019967,2]
[377840611,1754573352982,-400.0,0.00019967,2]
[377840612,1754573353003,-525.41,0.00019967,2]
[377840613,1754573353026,-1137.02,0.00019967,2]
[377840614,1754573353048,-1488.75,0.00019967,2]
[377840615,1754573353073,-400.0,0.00019967,2]
[377840616,1754573353096,-400.0,0.00019967,2]
[377840617,1754573353121,-400.0,0.00019967,2]
[377840618,1754573353149,-400.0,0.00019967,2]
[377840619,1754573353170,-879.11,0.00019967,2]
[377840620,1754573353191,-400.0,0.00019967,2]
[377840621,1754573353213,-1918.07,0.00019967,2]
[377840622,1754573353237,-400.0,0.00019967,2]
[377840623,1754573353259,-471.51,0.00019967,2]
[377840624,1754573353284,-400.0,0.00019967,2]
[377840625,1754573353306,-1455.31,0.00019967,2]
[377840626,1754573353331,-3195.99,0.00019967,2]
[377840627,1754573353354,-880.97,0.00019967,2]
[377840628,1754573353376,-2302.5,0.00019967,2]
[377840629,1754573353398,-414.82,0.00019967,2]
[377840630,1754573353420,-400.0,0.00019967,2]
[377840631,1754573353442,-1790.38,0.00019967,2]
[377840632,1754573353465,-1830.73,0.00019967,2]
[377840633,1754573353490,-400.0,0.00019967,2]
[377840634,1754573353512,-479.48,0.00019967,2]
[377840635,1754573353535,-400.0,0.00019967,2]
[377840636,1754573353558,-400.0,0.00019967,2]
[377840637,1754573353580,-400.0,0.00019967,2]
[377840638,1754573353603,-151.0,0.00019967,2]
[377840639,1754573353628,-292.569734,0.00019967,2]
[377840640,1754573353650,-400.0,0.00019967,2]
[377840641,1754573353672,-1242.91,0.00019967,2]
[377840642,1754573353694,-400.0,0.00019967,2]
[377840643,1754573353717,-195.102829,0.00019967,2]
[377840644,1754573353740,-195.102829,0.00019967,2]
[377840645,1754573353762,-195.102829,0.00019967,2]
[377840646,1754573353784,-195.102829,0.00019967,2]
[377840647,1754573353888,-195.102829,0.00019967,2]
[377840648,1754573353915,-195.102829,0.00019967,2]
[377840649,1754573353938,-195.102829,0.00019967,2]
[377840650,1754573353962,-195.102829,0.00019967,2]
[377840651,1754573353984,-195.102829,0.00019967,2]
[377840652,1754573354006,-195.102829,0.00019967,2]
[377840653,1754573354028,-1004.86,0.00019967,2]
[377840654,1754573354052,-195.102829,0.00019967,2]
[377840655,1754573354075,-195.102829,0.00019967,2]
[377840656,1754573354097,-195.102829,0.00019967,2]
[377840657,1754573354121,-651.64,0.00019967,2]
[377840658,1754573354145,-195.102821,0.00019967,2]
[377840659,1754573354168,-2173.79,0.00019967,2]
[377840660,1754573354191,-1656.38,0.00019967,2]
[377840661,1754573354215,-400.0,0.00019967,2]
[377840662,1754573354239,-400.0,0.00019967,2]
[377840663,1754573354262,-660.46,0.00019967,2]
[377840664,1754573354290,-400.0,0.00019967,2]
[377840665,1754573354312,-987.06,0.00019967,2]
[377840666,1754573354336,-500.79670174,0.00019967,2]
[377840667,1754573354359,-400.0,0.00019967,2]
[377840668,1754573354383,-400.0,0.00019967,2]
[377840669,1754573354404,-400.96455937,0.00019967,2]
[377840670,1754573354426,-400.0,0.00019967,2]
[377840671,1754573354448,-400.0,0.00019967,2]
[377840672,1754573354469,-457.53,0.00019967,2]
[377840673,1754573354491,-1638.43,0.00019967,2]
[377840674,1754573354512,-400.0,0.00019967,2]
[377840675,1754573354534,-781.47,0.00019967,2]
[377840676,1754573354555,-2482.31,0.00019967,2]
[377840677,1754573354578,-400.0,0.00019967,2]
[377840678,1754573354599,-836.42,0.00019967,2]
[377840679,1754573354620,-1188.71,0.00019967,2]
[377840680,1754573354643,-357.95871929,0.00019967,2]
[377840681,1754573354664,-799.42,0.00019967,2]
[377840682,1754573354686,-550.81,0.00019967,2]
[377840683,1754573354707,-400.0,0.00019967,2]
[377840684,1754573354728,-400.0,0.00019967,2]
[377840685,1754573354749,-400.0,0.00019967,2]
[377840686,1754573354770,-400.0,0.00019967,2]
[377840687,1754573354792,-1558.4,0.00019967,2]
[377840688,1754573354812,-400.0,0.00019967,2]
[377840689,1754573354835,-400.0,0.00019967,2]
[377840690,1754573354856,-400.0,0.00019967,2]
[377840691,1754573354877,-1481.49,0.00019967,2]
[377840692,1754573354897,-400.0,0.00019967,2]
[377840693,1754573354917,-603.34,0.00019967,2]
[377840694,1754573354941,-1680.96,0.00019967,2]
[377840695,1754573354964,-400.0,0.00019967,2]
[377840696,1754573354987,-1101.44,0.00019967,2]
[377840697,1754573355011,-500.0,0.00019967,2]
[377840698,1754573355034,-558.33,0.00019967,2]
[377840699,1754573355059,-1069.53,0.00019967,2]
[377840700,1754573355083,-400.0,0.00019967,2]
[377840701,1754573355105,-400.0,0.00019967,2]
[377840702,1754573355131,-1287.45,0.00019967,2]
[377840703,1754573355153,-268.67687791,0.00019967,2]
[377840704,1754573355176,-400.0,0.00019967,2]
[377840705,1754573355198,-400.0,0.00019967,2]
[377840706,1754573355224,-431.11,0.00019967,2]
[377840707,1754573355247,-1932.67,0.00019967,2]
[377840708,1754573355269,-654.64,0.00019967,2]
[377840709,1754573355295,-522.33,0.00019967,2]
[377840710,1754573355319,-1112.34,0.00019967,2]
[377840711,1754573355342,-898.24,0.00019967,2]
[377840712,1754573355365,-400.0,0.00019967,2]
[377840713,1754573355387,-268.19596833,0.00019967,2]
[377840714,1754573355409,-1053.95,0.00019967,2]
[377840715,1754573355433,-400.0,0.00019967,2]
[377840716,1754573355457,-1452.19,0.00019967,2]
[377840717,1754573355481,-400.0,0.00019967,2]
[377840718,1754573355507,-2382.55,0.00019967,2]
[377840719,1754573355534,-880.75,0.00019967,2]
[377840720,1754573355556,-672.88,0.00019967,2]
[377840721,1754573355581,-1737.51,0.00019967,2]
[377840722,1754573355603,-400.0,0.00019967,2]
[377840723,1754573355627,-400.0,0.00019967,2]
[377840724,1754573355650,-1089.53,0.00019967,2]
[377840725,1754573355672,-1238.27,0.00019967,2]
[377840726,1754573355694,-400.0,0.00019967,2]
[377840727,1754573355716,-795.22,0.00019967,2]
[377840728,1754573355739,-400.0,0.00019967,2]
[377840729,1754573355761,-400.0,0.00019967,2]
[377840730,1754573355784,-1686.17,0.00019967,2]
[377840731,1754573355807,-1416.23,0.00019967,2]
[377840732,1754573355833,-400.0,0.00019967,2]
[377840733,1754573355855,-151.0,0.00019967,2]
[377840734,1754573355877,-400.43728531,0.00019967,2]
[377840735,1754573355901,-151.0,0.00019967,2]
[377840736,1754573355924,-2141.05,0.00019967,2]
[377840737,1754573355950,-151.0,0.00019967,2]
[377840738,1754573355972,-1616.32,0.00019967,2]
[377840739,1754573355994,-400.0,0.00019967,2]
[377840740,1754573356019,-500.0,0.00019967,2]
[377840741,1754573356043,-401.35789659,0.00019967,2]
[377840742,1754573356066,-400.0,0.00019967,2]
[377840743,1754573356091,-400.0,0.00019967,2]
[377840744,1754573356115,-400.0,0.00019967,2]
[377840745,1754573356139,-400.0,0.00019967,2]
[377840746,1754573356163,-400.0,0.00019967,2]
[377840747,1754573356186,-400.0,0.00019967,2]
[377840748,1754573356209,-400.0,0.00019967,2]
[377840749,1754573356231,-400.0,0.00019967,2]
[377840750,1754573356253,-3558.51,0.00019967,2]
[377840751,1754573356277,-503.46,0.00019967,2]
[377840752,1754573356301,-500.0,0.00019967,2]
[377840754,1754573356325,-400.0,0.00019967,2]
[377840756,1754573356348,-1014.14,0.00019967,2]
[377840758,1754573356373,-1569.77,0.00019967,2]
[377840760,1754573356396,-400.0,0.00019967,2]
[377840762,1754573356417,-629.73,0.00019967,2]
[377840763,1754573356439,-400.0,0.00019967,2]
[377840765,1754573356463,-854.5,0.00019967,2]
[377840766,1754573356486,-400.0,0.00019967,2]
[377840767,1754573356509,-633.53,0.00019967,2]
[377840768,1754573356532,-400.0,0.00019967,2]
[377840769,1754573356555,-908.13,0.00019967,2]
[377840770,1754573356579,-400.0,0.00019967,2]
[377840771,1754573356602,-400.0,0.00019967,2]
[377840772,1754573356625,-1012.45,0.00019967,2]
[377840773,1754573356647,-381.48508929,0.00019967,2]
[377840774,1754573356671,-2391.92,0.00019967,2]
[377840775,1754573356694,-773.2,0.00019967,2]
[377840776,1754573356717,-1006.77,0.00019967,2]
[377840777,1754573356751,-400.0,0.00019967,2]
[377840778,1754573356774,-724.57,0.00019967,2]
[377840779,1754573356795,-2116.56,0.00019967,2]
[377840780,1754573356817,-400.0,0.00019967,2]
[377840781,1754573356840,-1928.05,0.00019967,2]
[377840782,1754573356861,-400.0,0.00019967,2]
[377840783,1754573356884,-400.0,0.00019967,2]
[377840784,1754573356906,-997.08,0.00019967,2]
[377840785,1754573356928,-400.0,0.00019967,2]
[377840786,1754573356950,-400.0,0.00019967,2]
[377840787,1754573356972,-400.0,0.00019967,2]
[377840788,1754573356998,-400.0,0.00019967,2]
[377840789,1754573357021,-400.0,0.00019967,2]
[377840790,1754573357044,-400.0,0.00019967,2]
[377840791,1754573357066,-1919.47,0.00019967,2]
[377840792,1754573357090,-400.0,0.00019967,2]
[377840793,1754573357112,-400.0,0.00019967,2]
[377840794,1754573357136,-2888.47,0.00019967,2]
[377840795,1754573357157,-400.0,0.00019967,2]
[377840796,1754573357179,-154.979247,0.00019967,2]
[377840797,1754573357202,-400.0,0.00019967,2]
[377840798,1754573357224,-151.0,0.00019967,2]
[377840799,1754573357246,-400.0,0.00019967,2]
[377840800,1754573357267,-668.77,0.00019967,2]
[377840801,1754573357291,-400.0,0.00019967,2]
[377840802,1754573357313,-400.0,0.00019967,2]
[377840803,1754573357336,-151.0,0.00019967,2]
[377840804,1754573357360,-400.0,0.00019967,2]
[377840805,1754573357383,-400.0,0.00019967,2]
[377840806,1754573357405,-400.0,0.00019967,2]
[377840807,1754573357426,-1614.61,0.00019967,2]
[377840808,1754573357448,-2334.16,0.00019967,2]
[377840809,1754573357470,-2015.37,0.00019967,2]
[377840810,1754573357493,-979.69,0.00019967,2]
[377840811,1754573357515,-981.32,0.00019967,2]
[377840812,1754573357538,-500.0,0.00019967,2]
[377840813,1754573357560,-400.0,0.00019967,2]
[377840814,1754573357582,-3187.85,0.00019967,2]
[377840815,1754573357604,-1870.48,0.00019967,2]
[377840816,1754573357626,-1878.54,0.00019967,2]
[377840817,1754573357649,-151.0,0.00019967,2]
[377840818,1754573357672,-151.0,0.00019967,2]
[377840819,1754573357695,-2069.27,0.00019967,2]
[377840820,1754573357717,-400.0,0.00019967,2]
[377840821,1754573357740,-1322.19,0.00019967,2]
[377840822,1754573357765,-400.0,0.00019967,2]
[377840823,1754573357796,-1571.77,0.00019967,2]
[377840824,1754573357821,-400.0,0.00019967,2]
[377840825,1754573357847,-2693.82,0.00019967,2]
[377840826,1754573357875,-2571.78,0.00019967,2]
[377840827,1754573357900,-450.47952,0.00019967,2]
[377840828,1754573357926,-7859.81,0.00019967,2]
[377840829,1754573357950,-400.0,0.00019967,2]
[377840830,1754573357973,-400.0,0.00019967,2]
[377840831,1754573357996,-2493.5,0.00019967,2]
[377840832,1754573358020,-1680.59,0.00019967,2]
[377840833,1754573358044,-934.63,0.00019967,2]
[377840834,1754573358067,-946.04,0.00019967,2]
[377840835,1754573358093,-2379.75,0.00019967,2]
[377840836,1754573358117,-400.0,0.00019967,2]
[377840837,1754573358282,-1984.51,0.00019967,2]
[377840838,1754573358306,-400.0,0.00019967,2]
[377840839,1754573358333,-151.0,0.00019968,2]
[377840840,1754573358357,-152.592549,0.00019968,2]
[377840841,1754573358381,-151.0,0.00019968,2]
[377840842,1754573358403,-151.0,0.00019968,2]
[377840843,1754573358429,-151.0,0.00019968,2]
[377840844,1754573358452,-151.0,0.00019968,2]
[377840845,1754573358481,-211.549708,0.00019968,2]
[377840846,1754573358503,-151.0,0.00019968,2]
[377840847,1754573358531,-151.0,0.00019968,2]
[377840848,1754573358556,-151.0,0.00019968,2]
[377840849,1754573358578,-151.0,0.00019968,2]
[377840850,1754573358601,-151.0,0.00019968,2]
[377840851,1754573358623,-409.79826,0.00019968,2]
[377840852,1754573358650,-409.79826,0.00019968,2]
[377840853,1754573358675,-409.79826,0.00019968,2]
[377840854,1754573358698,-409.79826,0.00019968,2]
[377840855,1754573358721,-409.79826,0.00019968,2]
[377840856,1754573358744,-409.79826,0.00019968,2]
[377840857,1754573358769,-151.0,0.00019968,2]
[377840858,1754573358792,-232.449197,0.00019968,2]
[377840859,1754573358817,-151.0,0.00019968,2]
[377840860,1754573358843,-170.22142613,0.0001997,2]
[377840861,1754573358869,-150.0,0.0001997,2]
[377840862,1754573358893,-500.0,0.00019971,2]
[377840863,1754573358916,-498.85913601,0.00019971,2]
[377840864,1754573358939,-799.42,0.00019971,2]
[377840865,1754573358967,-150.0,0.00019971,2]
[377840866,1754573358990,-500.0,0.00019971,2]
[377840867,1754573359014,-500.0,0.00019971,2]
[377840868,1754573359037,-1000.0,0.00019971,2]
[377840869,1754573359059,-202.70927573,0.00019971,2]
[377840870,1754573359083,-151.0,0.00019972,2]
[377840871,1754573359107,-151.0,0.00019972,2]
[377840872,1754573359131,-63220.125,0.00019972,2]
[377840873,1754573359155,-43846.5444074,0.00019972,2]
[377840874,1754573359178,-6179.5857559,0.00019972,2]
[377840875,1754573359201,-171.803334,0.00019972,2]
[377840876,1754573359224,-155.956182,0.00019972,2]
[377840877,1754573359247,-102089.4689999,0.00019972,2]
[377840878,1754573359271,-283.62507777,0.00019972,2]
[377840879,1754573359299,-32058.65906602,0.00019972,2]
[377840892,1754573387989,-200.0,0.00018988,2]
[377840893,1754573388011,-235.0,0.0001947,2]
[377840894,1754573388032,-151.0,0.00019606,2]
[377840895,1754573388057,-151.0,0.00019665,2]
[377840896,1754573388082,-300.0,0.000197,7]
[377840897,1754573388110,-235.0,0.00019785,2]
[377840898,1754573388133,-600.0,0.000198,7]
[377840899,1754573388156,-235.0,0.00019815,2]
[377840900,1754573388179,-235.0,0.00019836,2]
[377840901,1754573388200,-2500.0,0.00019867,2]
[377840902,1754573388221,-235.0,0.00019878,2]
[377840903,1754573388244,-900.0,0.000199,7]
[377840904,1754573388265,-235.0,0.00019921,2]
[377840905,1754573388289,-16773.9211219,0.00019959,2]
[377840906,1754573388310,-1659.7029586,0.00019959,2]
[377840907,1754573388331,-400.0,0.00019965,2]
[377840908,1754573388355,-233.66153573,0.00019965,2]
[377840909,1754573388377,-400.0,0.00019965,2]
[377840910,1754573388398,-400.0,0.00019965,2]
[377840911,1754573388419,-400.0,0.00019965,2]
[377840912,1754573388440,-400.0,0.00019965,2]
[377840913,1754573388462,-400.0,0.00019965,2]
[377840914,1754573388482,-401.86027177,0.00019965,2]
[377840915,1754573388507,-500.0,0.00019965,2]
[377840916,1754573388528,-1450.14,0.00019965,2]
[377840917,1754573388554,-500.0,0.00019965,2]
[377840918,1754573388579,-363.91681718,0.00019965,2]
[377840919,1754573388602,-400.0,0.00019965,2]
[377840920,1754573388624,-400.0,0.00019965,2]
[377840921,1754573388645,-741.18,0.00019965,2]
[377840922,1754573388666,-1306.9,0.00019965,2]
[377840923,1754573388689,-4185.81,0.00019965,2]
[377840924,1754573388711,-400.0,0.00019965,2]
[377840925,1754573388733,-1523.63,0.00019965,2]
[377840926,1754573388753,-400.0,0.00019965,2]
[377840927,1754573388775,-400.0,0.00019966,2]
[377840928,1754573388796,-3124.09,0.00019966,2]
[377840929,1754573388817,-2776.08,0.00019966,2]
[377840930,1754573388839,-973.95,0.00019966,2]
[377840931,1754573388859,-491.71,0.00019966,2]
[377840932,1754573388879,-1758.52,0.00019966,2]
[377840933,1754573388899,-400.0,0.00019966,2]
[377840934,1754573388920,-400.0,0.00019966,2]
[377840935,1754573388941,-404.04695293,0.00019966,2]
[377840936,1754573388961,-400.0,0.00019966,2]
[377840937,1754573388983,-400.0,0.00019966,2]
[377840938,1754573389004,-400.0,0.00019966,2]
[377840939,1754573389025,-1555.95,0.00019966,2]
[377840940,1754573389046,-1145.17,0.00019966,2]
[377840941,1754573389071,-2333.61,0.00019966,2]
[377840942,1754573389253,-400.0,0.00019966,2]
[377840943,1754573389301,-172.01769016,0.00019966,2]
[377840944,1754573389322,-1042.02,0.00019966,2]
[377840945,1754573389345,-400.0,0.00019966,2]
[377840946,1754573389366,-659.76,0.00019966,2]
[377840947,1754573389387,-400.0,0.00019966,2]
[377840948,1754573389410,-1562.78,0.00019966,2]
[377840949,1754573389431,-756.56,0.00019966,2]
[377840950,1754573389454,-1306.9,0.00019966,2]
[377840951,1754573389475,-400.0,0.00019966,2]
[377840952,1754573389502,-1306.9,0.00019966,2]
[377840953,1754573389524,-893.47,0.00019966,2]
[377840954,1754573389551,-400.0,0.00019966,2]
[377840955,1754573389574,-400.0,0.00019966,2]
[377840956,1754573389596,-4181.97,0.00019966,2]
[377840957,1754573389617,-2562.38,0.00019966,2]
[377840959,1754573389638,-2036.31,0.00019966,2]
[377840960,1754573389661,-1931.4,0.00019966,2]
[377840961,1754573389682,-459.40880081,0.00019966,2]
[377840962,1754573389705,-400.0,0.00019966,2]
[377840963,1754573389726,-151.0,0.00019967,2]
[377840964,1754573389748,-400.0,0.00019967,2]
[377840965,1754573389770,-151.0,0.00019967,2]
[377840966,1754573389793,-2204.46,0.00019967,2]
[377840967,1754573389815,-400.0,0.00019967,2]
[377840968,1754573389840,-151.0,0.00019967,2]
[377840969,1754573389861,-151.0,0.00019967,2]
[377840970,1754573389882,-151.0,0.00019967,2]
[377840971,1754573389907,-151.0,0.00019967,2]
[377840972,1754573389930,-585.61,0.00019967,2]
[377840973,1754573389953,-1944.56,0.00019967,2]
[377840974,1754573389977,-1983.05,0.00019967,2]
[377840975,1754573390001,-2000.0,0.00019967,2]
[377840976,1754573390025,-402.784,0.00019967,2]
[377840977,1754573390047,-400.0,0.00019967,2]
[377840978,1754573390071,-2096.45,0.00019967,2]
[377840979,1754573390096,-400.0,0.00019967,2]
[377840980,1754573390118,-400.0,0.00019967,2]
[377840981,1754573390140,-400.0,0.00019967,2]
[377840982,1754573390161,-1753.78,0.00019967,2]
[377840983,1754573390183,-1306.9,0.00019971,2]
[377840984,1754573390203,-151.0,0.00019972,2]
[377840985,1754573390224,-151.0,0.00019972,2]
[377840986,1754573390245,-151.0,0.00019972,2]
[377840987,1754573390266,-151.0,0.00019972,2]
[377840988,1754573390290,-151.0,0.00019972,2]
[377840989,1754573390311,-151.0,0.00019972,2]
[377840990,1754573390334,-21795.87067873,0.00019972,2]
[377840991,1754573390356,-500.0,0.00019973,2]
[377840992,1754573390380,-500.0,0.00019973,2]
[377840993,1754573390401,-500.0,0.00019973,2]
[377840994,1754573390423,-500.0,0.00019973,2]
[377840995,1754573390444,-500.0,0.00019973,2]
[377840996,1754573390467,-500.0,0.00019973,2]
[377840997,1754573390488,-500.0,0.00019973,2]
[377840998,1754573390509,-500.0,0.00019973,2]
[377840999,1754573390531,-500.0,0.00019973,2]
[377841000,1754573390553,-500.0,0.00019974,2]
[377841001,1754573390575,-500.0,0.00019974,2]
[377841002,1754573390599,-1540.1,0.00019974,2]
[377841003,1754573390623,-150.0,0.00019974,2]
[377841004,1754573390645,-500.0,0.00019974,2]
[377841005,1754573390667,-500.0,0.00019974,2]
[377841006,1754573390689,-500.0,0.00019974,2]
[377841007,1754573390712,-814.48,0.00019974,2]
[377841008,1754573390733,-1306.9,0.00019974,2]
[377841009,1754573390755,-151.0,0.00019975,2]
[377841010,1754573390776,-151.0,0.00019975,2]
[377841011,1754573390798,-281.59738051,0.00019975,2]
[377841012,1754573390818,-151.0,0.00019975,2]
[377841013,1754573390839,-151.0,0.00019975,2]